[Event "Kupreichik Memorial Open 2018"]
[Site "Minsk"]
[Date "2018.06.21"]
[Round "1"]
[White "Zagorskii, Artem"]
[Black "Zarubitski, Viachaslau"]
[Result "0-1"]
[ECO "B40"]
[WhiteElo "1705"]
[BlackElo "2265"]
[Annotator "NA"]
[PlyCount "60"]
[EventDate "2018.06.21"]
[EventCountry "BLR"]
[SourceTitle "playchess.com"]
[Source "ChessBase"]
[SourceQuality "1"]
[TimeControl "900+10"]

1. e4 {[%emt 0:00:00]} c5 {[%emt 0:00:01]} 2. Nf3 {[%emt 0:00:00]} e6 {[%emt 0:00:01]} 3. g3 {[%emt 0:00:02]} Nc6 {[%emt 0:00:03]} 4. Bg2 {[%emt 0:00:01]} Nf6 {[%emt 0:00:04]} 5. Nc3 {[%emt 0:00:04]} a6 {[%emt 0:01:06]} 6. a4 {[%emt 0:00:47]} Qc7 {[%emt 0:00:07]} 7. O-O {[%emt 0:00:39]} Be7 {[%emt 0:00:02]} 8. d4 {[%emt 0:01:04]} cxd4 {[%emt 0:00:06]} 9. Nxd4 {[%emt 0:00:02]} h5 {[%emt 0:00:02]} 10. Nb3 {[%emt 0:04:49]} h4 {[%emt 0:00:11]} 11. a5 {[%emt 0:00:12]} d6 {[%emt 0:01:32]} 12. Be3 {[%emt 0:00:26]} Ne5 {[%emt 0:00:04]} 13. Bb6 {[%emt 0:00:15]} Qb8 {[%emt 0:00:11]} 14. Qe2 {[%emt 0:00:52]} hxg3 {[%emt 0:00:29]} 15. hxg3 {[%emt 0:00:10]} Bd7 {[%emt 0:00:32]} 16. Rad1 {[%emt 0:02:13]} Qc8 {[%emt 0:01:19]} 17. Rd4 {[%emt 0:00:42]} g5 {[%emt 0:00:21]} 18. Rc1 {[%emt 0:03:23]} g4 {[%emt 0:00:08]} 19. Nd2 {[%emt 0:00:07]} Bc6 {[%emt 0:00:12]} 20. Nc4 Nxc4 {[%emt 0:00:09]} 21. Rxc4 {[%emt 0:01:05]} Nd7 {[%emt 0:00:03]} 22. Bd4 {[%emt 0:01:23]} Rg8 {[%emt 0:01:03]} 23. Rd1 {[%emt 0:00:12]} Qc7 {[%emt 0:00:52]} 24. b4 {[%emt 0:00:09]} b5 {[%emt 0:00:12]} 25. axb6 {[%emt 0:00:06]} Nxb6 {[%emt 0:00:01]} 26. Bxb6 {[%emt 0:00:13]} Qxb6 {[%emt 0:00:01]} 27. Rcd4 {[%emt 0:00:18]} a5 {[%emt 0:01:12]} 28. bxa5 {[%emt 0:00:06]} Rxa5 {[%emt 0:00:02]} 29. Rb1 {[%emt 0:00:05]} Qxd4 {[%emt 0:00:06]} 30. Rb8+ {[%emt 0:00:03]} Bd8 {[%emt 0:00:07]} 0-1

[Event "Kupreichik Memorial Open 2018"]
[Site "Minsk"]
[Date "2018.06.21"]
[Round "1"]
[White "Tsvetkova, Vladislava"]
[Black "Tsigelnitskiy, Ilusha"]
[Result "0-1"]
[ECO "B41"]
[WhiteElo "1697"]
[BlackElo "2253"]
[Annotator "NA"]
[PlyCount "52"]
[EventDate "2018.06.21"]
[EventCountry "BLR"]
[SourceTitle "playchess.com"]
[Source "ChessBase"]
[SourceQuality "1"]
[TimeControl "900+10"]

1. e4 {[%emt 0:00:00]} c5 {[%emt 0:00:02]} 2. Nf3 {[%emt 0:00:00]} e6 {[%emt 0:00:03]} 3. d4 {[%emt 0:00:00]} cxd4 {[%emt 0:00:02]} 4. Nxd4 {[%emt 0:00:00]} a6 {[%emt 0:00:02]} 5. g3 {[%emt 0:00:08]} Nf6 {[%emt 0:00:23]} 6. Bg2 {[%emt 0:00:03]} d5 {[%emt 0:01:09]} 7. exd5 {[%emt 0:00:46]} Nxd5 {[%emt 0:00:14]} 8. O-O {[%emt 0:00:16]} Be7 {[%emt 0:00:10]} 9. c4 {[%emt 0:01:00]} Nf6 {[%emt 0:00:18]} 10. Be3 {[%emt 0:02:19]} O-O {[%emt 0:00:12]} 11. Nc3 {[%emt 0:00:25]} Qc7 {[%emt 0:00:50]} 12. Qe2 {[%emt 0:02:20]} Bd7 {[%emt 0:00:29]} 13. a3 {[%emt 0:04:45]} Nc6 {[%emt 0:00:08]} 14. b4 {[%emt 0:00:08]} Rac8 {[%emt 0:00:50]} 15. Rfc1 {[%emt 0:01:20]} Nxd4 {[%emt 0:01:01]} 16. Bxd4 {[%emt 0:00:15]} Qxc4 {[%emt 0:00:05]} 17. Qd2 {[%emt 0:01:49]} b5 {[%emt 0:04:03]} 18. Nd5 {[%emt 0:00:54]} Nxd5 {[%emt 0:01:16]} 19. Rxc4 {[%emt 0:00:13]} bxc4 {[%emt 0:00:55]} 20. Re1 {[%emt 0:00:22]} Rfe8 {[%emt 0:00:48]} 21. Bxd5 {[%emt 0:00:28]} exd5 {[%emt 0:00:03]} 22. Qf4 {[%emt 0:00:28]} Bf8 {[%emt 0:01:02]} 23. Re5 {[%emt 0:00:17]} c3 {[%emt 0:01:02]} 24. Rxd5 {[%emt 0:00:16]} c2 {[%emt 0:00:23]} 25. Bb2 {[%emt 0:00:15]} Re1+ {[%emt 0:00:20]} 26. Kg2 {[%emt 0:00:07]} Bc6 {[%emt 0:00:05]} 0-1

[Event "Kupreichik Memorial Open 2018"]
[Site "Minsk"]
[Date "2018.06.21"]
[Round "1"]
[White "Tarasenka, Aliaksandra"]
[Black "Sihite, Chelsie Monica Igne"]
[Result "0-1"]
[ECO "C31"]
[WhiteElo "1682"]
[BlackElo "2236"]
[Annotator "NA"]
[PlyCount "54"]
[EventDate "2018.06.21"]
[EventCountry "BLR"]
[SourceTitle "playchess.com"]
[Source "ChessBase"]
[SourceQuality "1"]
[TimeControl "900+10"]

1. e4 {[%emt 0:00:00]} e5 {[%emt 0:00:02]} 2. f4 {[%emt 0:00:09]} d5 {[%emt 0:00:10]} 3. exd5 {[%emt 0:00:03]} Qxd5 {[%emt 0:01:57]} 4. Nc3 {[%emt 0:01:05]} Qe6 {[%emt 0:00:16]} 5. Nf3 {[%emt 0:02:45]} Nc6 {[%emt 0:02:00]} 6. Bb5 {[%emt 0:02:11]} a6 {[%emt 0:02:56]} 7. Bxc6+ {[%emt 0:00:50]} Qxc6 {[%emt 0:00:02]} 8. fxe5 {[%emt 0:00:37]} Bg4 {[%emt 0:00:12]} 9. O-O {[%emt 0:00:55]} O-O-O {[%emt 0:00:09]} 10. Ne2 {[%emt 0:02:08]} h5 {[%emt 0:00:46]} 11. d4 {[%emt 0:00:41]} Ne7 {[%emt 0:00:46]} 12. h3 {[%emt 0:01:03]} Bf5 {[%emt 0:00:47]} 13. c3 {[%emt 0:00:17]} f6 {[%emt 0:00:07]} 14. a4 {[%emt 0:00:59]} Be4 {[%emt 0:00:07]} 15. Bf4 {[%emt 0:00:56]} Ng6 {[%emt 0:00:16]} 16. exf6 {[%emt 0:01:04]} gxf6 {[%emt 0:00:08]} 17. Rc1 {[%emt 0:00:43]} Rg8 {[%emt 0:00:03]} 18. Kh1 {[%emt 0:00:17]} Bxf3 {[%emt 0:00:20]} 19. gxf3 {[%emt 0:00:13]} Nxf4 {[%emt 0:00:03]} 20. Nxf4 {[%emt 0:00:04]} Bh6 {[%emt 0:00:02]} 21. Ng2 {[%emt 0:00:30]} Bxc1 {[%emt 0:00:04]} 22. Qxc1 {[%emt 0:00:01]} Rg3 {[%emt 0:00:12]} 23. Qf4 {[%emt 0:00:57]} Rdg8 {[%emt 0:00:04]} 24. Rf2 {[%emt 0:00:14]} Qe6 {[%emt 0:00:02]} 25. Qe4 {[%emt 0:00:16]} Qxh3+ {[%emt 0:00:07]} 26. Kg1 {[%emt 0:00:02]} Rxg2+ {[%emt 0:00:03]} 27. Kf1 {[%emt 0:00:06]} R2g4+ {[%emt 0:00:05]} 0-1

[Event "Kupreichik Memorial Open 2018"]
[Site "Minsk"]
[Date "2018.06.21"]
[Round "1"]
[White "Ivanytska, Liudmyla"]
[Black "Savolainen, Lev P"]
[Result "0-1"]
[ECO "C01"]
[WhiteElo "1655"]
[BlackElo "2163"]
[Annotator "NA"]
[PlyCount "138"]
[EventDate "2018.06.21"]
[EventCountry "BLR"]
[SourceTitle "playchess.com"]
[Source "ChessBase"]
[SourceQuality "1"]
[TimeControl "900+10"]

1. e4 {[%emt 0:00:00]} e6 {[%emt 0:00:02]} 2. d4 {[%emt 0:00:00]} d5 {[%emt 0:00:01]} 3. exd5 {[%emt 0:00:00]} exd5 {[%emt 0:00:02]} 4. Bd3 {[%emt 0:00:06]} Nc6 {[%emt 0:00:02]} 5. c3 {[%emt 0:00:01]} Bd6 {[%emt 0:00:01]} 6. Be3 {[%emt 0:00:03]} Nge7 {[%emt 0:00:03]} 7. Qc2 {[%emt 0:00:03]} g6 {[%emt 0:00:11]} 8. Bg5 {[%emt 0:00:02]} O-O {[%emt 0:00:10]} 9. Nf3 {[%emt 0:00:12]} Bg4 {[%emt 0:00:08]} 10. Nbd2 {[%emt 0:00:01]} Qd7 {[%emt 0:00:10]} 11. O-O {[%emt 0:00:07]} Rfe8 {[%emt 0:00:08]} 12. h3 {[%emt 0:00:02]} Bf5 {[%emt 0:00:35]} 13. Rae1 {[%emt 0:00:08]} Bxd3 {[%emt 0:00:25]} 14. Qxd3 {[%emt 0:00:02]} Nf5 {[%emt 0:00:47]} 15. Nh4 {[%emt 0:00:12]} Nce7 {[%emt 0:03:32]} 16. Ndf3 {[%emt 0:00:11]} c6 {[%emt 0:02:11]} 17. Nxf5 {[%emt 0:00:18]} Nxf5 {[%emt 0:00:06]} 18. Nh4 {[%emt 0:00:02]} Ng7 {[%emt 0:00:32]} 19. Qf3 {[%emt 0:00:23]} Re6 {[%emt 0:00:41]} 20. Rxe6 {[%emt 0:00:19]} Qxe6 {[%emt 0:00:04]} 21. Bd2 {[%emt 0:00:03]} Be7 {[%emt 0:01:01]} 22. Re1 {[%emt 0:00:36]} Qd7 {[%emt 0:00:32]} 23. g3 {[%emt 0:01:43]} Re8 {[%emt 0:01:15]} 24. Kh2 {[%emt 0:00:53]} Bxh4 {[%emt 0:01:16]} 25. Rxe8+ Qxe8 {[%emt 0:00:31]} 26. gxh4 {[%emt 0:00:04]} h5 {[%emt 0:00:15]} 27. Kg2 {[%emt 0:01:29]} Nf5 {[%emt 0:00:10]} 28. Bg5 {[%emt 0:00:04]} Kg7 {[%emt 0:00:08]} 29. Kh2 {[%emt 0:00:38]} f6 {[%emt 0:00:12]} 30. Be3 {[%emt 0:00:03]} Nxh4 {[%emt 0:00:28]} 31. Qf4 {[%emt 0:00:10]} g5 {[%emt 0:00:15]} 32. Qc7+ {[%emt 0:00:09]} Qf7 {[%emt 0:00:02]} 33. Qb8 {[%emt 0:00:07]} a6 {[%emt 0:00:03]} 34. Qc8 {[%emt 0:00:12]} Kg6 {[%emt 0:00:31]} 35. f4 {[%emt 0:00:19]} Nf5 {[%emt 0:00:24]} 36. Bd2 {[%emt 0:00:01]} Qe7 {[%emt 0:00:25]} 37. Qg8+ {[%emt 0:00:15]} Ng7 {[%emt 0:00:03]} 38. Kg1 {[%emt 0:00:02]} Qe2 {[%emt 0:00:37]} 39. f5+ {[%emt 0:00:01]} Kxf5 {[%emt 0:00:08]} 40. Qxg7 {[%emt 0:00:17]} Qd1+ {[%emt 0:00:15]} 41. Kf2 {[%emt 0:00:03]} Qxd2+ {[%emt 0:00:03]} 42. Kf1 {[%emt 0:00:07]} Qc1+ {[%emt 0:00:12]} 43. Ke2 {[%emt 0:00:10]} Qxb2+ {[%emt 0:00:01]} 44. Kd3 {[%emt 0:00:01]} Qb1+ {[%emt 0:00:05]} 45. Ke3 {[%emt 0:00:02]} Qc1+ {[%emt 0:00:08]} 46. Kd3 {[%emt 0:00:01]} Qf1+ {[%emt 0:00:04]} 47. Kd2 {[%emt 0:00:10]} Qg2+ {[%emt 0:00:39]} 48. Kd1 {[%emt 0:00:08]} Ke4 {[%emt 0:00:39]} 49. c4 {[%emt 0:01:35]} Kd3 {[%emt 0:00:34]} 50. Qg6+ {[%emt 0:00:14]} Qe4 {[%emt 0:00:07]} 51. Qxe4+ {[%emt 0:00:02]} Kxe4 {[%emt 0:00:04]} 52. cxd5 {[%emt 0:00:02]} cxd5 {[%emt 0:00:01]} 53. a4 {[%emt 0:00:04]} b5 {[%emt 0:00:05]} 54. axb5 {[%emt 0:00:04]} axb5 {[%emt 0:00:01]} 55. Kc2 {[%emt 0:00:02]} Kxd4 {[%emt 0:00:02]} 56. Kd2 {[%emt 0:00:01]} b4 {[%emt 0:00:01]} 57. Kc2 {[%emt 0:00:02]} Kc4 {[%emt 0:00:02]} 58. Kd2 {[%emt 0:00:01]} b3 {[%emt 0:00:01]} 59. Kd1 {[%emt 0:00:03]} Kc3 {[%emt 0:00:02]} 60. Kc1 {[%emt 0:00:00]} b2+ {[%emt 0:00:02]} 61. Kb1 {[%emt 0:00:01]} d4 {[%emt 0:00:03]} 62. h4 {[%emt 0:00:01]} gxh4 {[%emt 0:00:02]} 63. Ka2 {[%emt 0:00:02]} Kc2 {[%emt 0:00:02]} 64. Ka3 {[%emt 0:00:00]} b1=Q {[%emt 0:00:04]} 65. Ka4 {[%emt 0:00:01]} Kc3 {[%emt 0:00:03]} 66. Ka5 {[%emt 0:00:02]} Kc4 {[%emt 0:00:01]} 67. Ka6 {[%emt 0:00:01]} Kc5 {[%emt 0:00:02]} 68. Ka7 {[%emt 0:00:01]} Kc6 {[%emt 0:00:01]} 69. Ka8 {[%emt 0:00:02]} Qb7# {[%emt 0:00:02]} 0-1

[Event "Kupreichik Memorial Open 2018"]
[Site "Minsk"]
[Date "2018.06.21"]
[Round "1"]
[White "Kashtelyan, Valentin"]
[Black "Badelka, Olga"]
[Result "0-1"]
[ECO "B40"]
[WhiteElo "1604"]
[BlackElo "2153"]
[Annotator "NA"]
[PlyCount "30"]
[EventDate "2018.06.21"]
[EventCountry "BLR"]
[SourceTitle "playchess.com"]
[Source "ChessBase"]
[SourceQuality "1"]
[TimeControl "900+10"]

1. e4 {[%emt 0:00:01]} c5 {[%emt 0:00:06]} 2. Nf3 {[%emt 0:00:02]} e6 {[%emt 0:00:03]} 3. Bc4 {[%emt 0:00:04]} Nc6 {[%emt 0:00:14]} 4. O-O {[%emt 0:00:07]} a6 {[%emt 0:00:06]} 5. c3 {[%emt 0:00:20]} b5 {[%emt 0:00:23]} 6. Bb3 {[%emt 0:00:05]} c4 {[%emt 0:00:04]} 7. Bc2 {[%emt 0:00:01]} Bb7 {[%emt 0:00:04]} 8. Re1 {[%emt 0:00:08]} Nf6 {[%emt 0:00:08]} 9. d4 {[%emt 0:00:28]} cxd3 {[%emt 0:00:02]} 10. Qxd3 {[%emt 0:00:28]} Bc5 {[%emt 0:00:31]} 11. Be3 {[%emt 0:00:32]} Bxe3 {[%emt 0:00:05]} 12. Rxe3 {[%emt 0:00:13]} Ng4 {[%emt 0:00:18]} 13. Re1 {[%emt 0:00:14]} Qf6 {[%emt 0:00:16]} 14. h3 {[%emt 0:00:30]} Nce5 {[%emt 0:00:09]} 15. Nxe5 {[%emt 0:00:17]} Qxf2+ {[%emt 0:00:08]} 0-1

[Event "Kupreichik Memorial Open 2018"]
[Site "Minsk"]
[Date "2018.06.21"]
[Round "1"]
[White "Stsepkina, Yauheniya"]
[Black "Maslak, Alexander"]
[Result "0-1"]
[ECO "E81"]
[WhiteElo "1591"]
[BlackElo "2127"]
[Annotator "NA"]
[PlyCount "80"]
[EventDate "2018.06.21"]
[EventCountry "BLR"]
[SourceTitle "playchess.com"]
[Source "ChessBase"]
[SourceQuality "1"]
[TimeControl "900+10"]

1. d4 {[%emt 0:00:00]} Nf6 {[%emt 0:00:02]} 2. c4 {[%emt 0:00:00]} g6 {[%emt 0:00:01]} 3. Nc3 {[%emt 0:00:00]} Bg7 {[%emt 0:00:02]} 4. e4 {[%emt 0:00:00]} d6 {[%emt 0:00:01]} 5. f3 {[%emt 0:00:02]} O-O {[%emt 0:00:03]} 6. Be3 {[%emt 0:00:02]} c6 {[%emt 0:00:06]} 7. Qd2 {[%emt 0:00:04]} Nbd7 {[%emt 0:00:02]} 8. Bd3 {[%emt 0:01:06]} e5 {[%emt 0:00:04]} 9. d5 {[%emt 0:00:09]} cxd5 {[%emt 0:00:05]} 10. exd5 {[%emt 0:00:52]} a6 {[%emt 0:01:24]} 11. Ne4 {[%emt 0:00:13]} Nxe4 {[%emt 0:00:38]} 12. fxe4 {[%emt 0:00:14]} f5 {[%emt 0:00:02]} 13. Nf3 {[%emt 0:02:44]} Nf6 {[%emt 0:02:05]} 14. Bg5 {[%emt 0:00:22]} fxe4 {[%emt 0:02:08]} 15. Bxf6 {[%emt 0:00:24]} Rxf6 {[%emt 0:00:33]} 16. Bxe4 {[%emt 0:00:06]} Rf4 {[%emt 0:00:10]} 17. Qc2 {[%emt 0:00:57]} Qa5+ {[%emt 0:00:38]} 18. Nd2 {[%emt 0:00:46]} Bh6 {[%emt 0:00:57]} 19. O-O-O {[%emt 0:05:44]} Qxa2 {[%emt 0:03:05]} 20. Rhf1 {[%emt 0:01:32]} Rxf1 {[%emt 0:02:39]} 21. Rxf1 {[%emt 0:00:02]} Qa1+ {[%emt 0:00:41]} 22. Qb1 {[%emt 0:00:08]} Qa5 {[%emt 0:00:21]} 23. Qc2 {[%emt 0:00:18]} Kg7 {[%emt 0:00:22]} 24. Rf3 {[%emt 0:02:43]} Bd7 {[%emt 0:00:44]} 25. Qc3 {[%emt 0:00:20]} Qa1+ {[%emt 0:00:34]} 26. Kc2 {[%emt 0:00:19]} Qe1 {[%emt 0:00:55]} 27. Rf1 {[%emt 0:00:11]} Qxd2+ {[%emt 0:00:33]} 28. Qxd2 {[%emt 0:00:02]} Bxd2 {[%emt 0:00:01]} 29. Kxd2 {[%emt 0:00:00]} Rc8 {[%emt 0:00:09]} 30. Bd3 {[%emt 0:00:19]} a5 {[%emt 0:00:07]} 31. Ra1 {[%emt 0:00:02]} b6 {[%emt 0:00:01]} 32. Ra3 {[%emt 0:00:13]} Kf6 {[%emt 0:00:18]} 33. b4 {[%emt 0:00:13]} axb4 {[%emt 0:00:11]} 34. Rb3 {[%emt 0:00:00]} Ra8 {[%emt 0:00:05]} 35. Rxb4 {[%emt 0:00:02]} Ra2+ {[%emt 0:00:02]} 36. Bc2 {[%emt 0:00:01]} Bf5 {[%emt 0:00:02]} 37. Rxb6 {[%emt 0:00:35]} Rxc2+ {[%emt 0:00:02]} 38. Ke3 {[%emt 0:00:03]} Ke7 {[%emt 0:00:09]} 39. Rb7+ {[%emt 0:00:03]} Bd7 {[%emt 0:00:02]} 40. Kd3 {[%emt 0:00:23]} Rxg2 {[%emt 0:00:02] Kd4} 0-1

[Event "Kupreichik Memorial Open 2018"]
[Site "Minsk"]
[Date "2018.06.21"]
[Round "1"]
[White "Kozlov, Valentin"]
[Black "Fedotov, Konstantin"]
[Result "0-1"]
[ECO "B12"]
[WhiteElo "1553"]
[BlackElo "2090"]
[Annotator "NA"]
[PlyCount "74"]
[EventDate "2018.06.21"]
[EventCountry "BLR"]
[SourceTitle "playchess.com"]
[Source "ChessBase"]
[SourceQuality "1"]
[TimeControl "900+10"]

1. e4 {[%emt 0:00:00]} c6 {[%emt 0:00:00]} 2. d4 {[%emt 0:00:00]} d5 {[%emt 0:00:01]} 3. e5 {[%emt 0:00:00]} Bf5 {[%emt 0:00:01]} 4. Nf3 {[%emt 0:00:00]} e6 {[%emt 0:00:17]} 5. a3 {[%emt 0:00:01]} c5 {[%emt 0:00:05]} 6. dxc5 {[%emt 0:00:02]} Bxc5 {[%emt 0:00:04]} 7. b4 {[%emt 0:00:01]} Bb6 {[%emt 0:00:07]} 8. Be2 {[%emt 0:00:10]} Nd7 {[%emt 0:00:01]} 9. O-O {[%emt 0:00:40]} Qc7 {[%emt 0:00:02]} 10. Bb2 {[%emt 0:00:59]} Qxc2 {[%emt 0:00:17]} 11. Qxc2 {[%emt 0:00:10]} Bxc2 {[%emt 0:00:02]} 12. Nc3 {[%emt 0:01:02]} a6 {[%emt 0:00:51]} 13. Rac1 {[%emt 0:00:21]} Bg6 {[%emt 0:00:02]} 14. Na4 {[%emt 0:00:32]} Bd8 {[%emt 0:00:15]} 15. Rc3 {[%emt 0:02:37]} Ne7 {[%emt 0:00:06]} 16. Nh4 {[%emt 0:00:35]} Nc6 {[%emt 0:01:37]} 17. Nxg6 {[%emt 0:00:15]} hxg6 {[%emt 0:00:03]} 18. f4 {[%emt 0:00:24]} Nd4 {[%emt 0:02:22]} 19. Bd3 {[%emt 0:00:51]} b5 {[%emt 0:00:01]} 20. Nc5 {[%emt 0:00:20]} Nxc5 {[%emt 0:00:03]} 21. Rxc5 {[%emt 0:00:15]} Nf5 {[%emt 0:00:21]} 22. Rfc1 {[%emt 0:00:53]} Bb6 {[%emt 0:00:11]} 23. Bxf5 {[%emt 0:01:02]} Bxc5+ {[%emt 0:00:02]} 24. Rxc5 {[%emt 0:00:03]} gxf5 {[%emt 0:00:02]} 25. Bd4 {[%emt 0:00:37]} Kd7 {[%emt 0:00:08]} 26. Rc3 {[%emt 0:00:42]} a5 {[%emt 0:01:34]} 27. bxa5 {[%emt 0:01:22]} Rhc8 {[%emt 0:00:08]} 28. Rb3 {[%emt 0:00:23]} Rxa5 {[%emt 0:00:13]} 29. Bb6 {[%emt 0:00:07]} Ra4 {[%emt 0:00:07]} 30. g3 {[%emt 0:00:19]} Rc1+ {[%emt 0:00:06]} 31. Kg2 {[%emt 0:00:05]} Kc6 {[%emt 0:00:02]} 32. Bd8 {[%emt 0:00:29]} d4 {[%emt 0:00:18]} 33. Be7 {[%emt 0:00:18]} Rc2+ {[%emt 0:00:12]} 34. Kh3 {[%emt 0:00:06]} Rc3 {[%emt 0:00:05]} 35. Rb2 {[%emt 0:00:15]} Rac4 {[%emt 0:00:13]} 36. Rd2 {[%emt 0:00:19]} Kd5 {[%emt 0:00:17]} 37. Kh4 {[%emt 0:00:53]} Rc2 {[%emt 0:00:22]} 0-1

[Event "Kupreichik Memorial Open 2018"]
[Site "Minsk"]
[Date "2018.06.21"]
[Round "1"]
[White "Tkachou, Pavel"]
[Black "Sarbay, Aleksandr"]
[Result "0-1"]
[ECO "A46"]
[WhiteElo "1535"]
[BlackElo "2183"]
[Annotator "NA"]
[PlyCount "24"]
[EventDate "2018.06.21"]
[EventCountry "BLR"]
[SourceTitle "playchess.com"]
[Source "ChessBase"]
[SourceQuality "1"]
[TimeControl "900+10"]

1. d4 {[%emt 0:00:00]} Nf6 {[%emt 0:00:01]} 2. Nf3 {[%emt 0:00:00]} c5 {[%emt 0:00:13]} 3. c3 {[%emt 0:00:02]} e6 {[%emt 0:00:37]} 4. g3 {[%emt 0:00:03]} b6 {[%emt 0:01:34]} 5. Bg2 {[%emt 0:00:07]} Bb7 {[%emt 0:00:01]} 6. O-O {[%emt 0:00:10]} Be7 {[%emt 0:00:12]} 7. Nbd2 {[%emt 0:02:22]} O-O {[%emt 0:00:33]} 8. Qc2 {[%emt 0:01:11]} cxd4 {[%emt 0:00:38]} 9. cxd4 {[%emt 0:00:54]} Nc6 {[%emt 0:00:01]} 10. e3 {[%emt 0:03:23]} Nb4 {[%emt 0:03:07]} 11. Qb1 {[%emt 0:02:00]} Ba6 {[%emt 0:00:31]} 12. Rd1 {[%emt 0:01:06]} Bd3 {[%emt 0:00:23]} 0-1

[Event "Kupreichik Memorial Open 2018"]
[Site "Minsk"]
[Date "2018.06.21"]
[Round "1"]
[White "Yagutian, Mariya"]
[Black "Shaban, Alena"]
[Result "1-0"]
[ECO "D30"]
[WhiteElo "1506"]
[BlackElo "2027"]
[Annotator "NA"]
[PlyCount "67"]
[EventDate "2018.06.21"]
[EventCountry "BLR"]
[SourceTitle "playchess.com"]
[Source "ChessBase"]
[SourceQuality "1"]
[TimeControl "900+10"]

1. d4 {[%emt 0:00:00]} d5 {[%emt 0:00:03]} 2. c4 {[%emt 0:00:00]} e6 {[%emt 0:00:03]} 3. Nf3 {[%emt 0:00:00]} Nf6 {[%emt 0:00:01]} 4. g3 {[%emt 0:00:04]} c5 {[%emt 0:00:28]} 5. cxd5 {[%emt 0:00:06]} Nxd5 {[%emt 0:00:35]} 6. Bg2 {[%emt 0:00:55]} Nc6 {[%emt 0:00:04]} 7. O-O {[%emt 0:00:12]} c4 {[%emt 0:01:29]} 8. Nbd2 {[%emt 0:00:50]} c3 {[%emt 0:02:22]} 9. Nc4 {[%emt 0:01:49]} b5 {[%emt 0:02:50]} 10. Nce5 {[%emt 0:01:06]} Bb7 {[%emt 0:00:08]} 11. e4 {[%emt 0:02:01]} Nxe5 {[%emt 0:01:05]} 12. Nxe5 {[%emt 0:00:57]} Nf6 {[%emt 0:00:36]} 13. Qd3 {[%emt 0:02:17]} cxb2 {[%emt 0:02:52]} 14. Qxb5+ {[%emt 0:00:11]} Nd7 {[%emt 0:00:04]} 15. Bxb2 {[%emt 0:00:20]} Rb8 {[%emt 0:00:46]} 16. Nxd7 {[%emt 0:00:41]} Qxd7 {[%emt 0:00:15]} 17. Qe5 {[%emt 0:00:36]} Rd8 {[%emt 0:01:18]} 18. Rfc1 {[%emt 0:00:59]} f6 {[%emt 0:00:06]} 19. Qa5 {[%emt 0:00:34]} Bc6 {[%emt 0:00:48]} 20. d5 {[%emt 0:02:20]} Ba4 {[%emt 0:00:54]} 21. Rc7 {[%emt 0:00:43]} Qb5 {[%emt 0:00:02]} 22. Qxb5+ {[%emt 0:00:10]} Bxb5 {[%emt 0:00:02]} 23. Rxa7 {[%emt 0:00:19]} Bc5 {[%emt 0:00:08]} 24. Ra5 {[%emt 0:00:08]} Rb8 {[%emt 0:00:05]} 25. Bc3 {[%emt 0:00:58]} exd5 {[%emt 0:00:05]} 26. exd5 {[%emt 0:00:14]} Bd6 {[%emt 0:00:08]} 27. Rb1 {[%emt 0:00:02]} Bc4 {[%emt 0:00:04]} 28. Rxb8+ {[%emt 0:00:04]} Bxb8 {[%emt 0:00:01]} 29. Ra8 {[%emt 0:00:02]} O-O {[%emt 0:00:06]} 30. Bb4 {[%emt 0:00:09]} Rd8 {[%emt 0:00:07]} 31. d6 {[%emt 0:00:06]} Kf7 {[%emt 0:00:07]} 32. Ba5 {[%emt 0:00:18]} Rf8 {[%emt 0:00:12]} 33. Bc7 {[%emt 0:00:09]} Ba7 {[%emt 0:00:15]} 34. d7 {[%emt 0:00:30]} 1-0

[Event "Kupreichik Memorial Open 2018"]
[Site "Minsk"]
[Date "2018.06.21"]
[Round "2"]
[White "Meshkov, Yuri A"]
[Black "Svjatocho, Andrej"]
[Result "1-0"]
[ECO "A40"]
[WhiteElo "2375"]
[BlackElo "1979"]
[Annotator "NA"]
[PlyCount "93"]
[EventDate "2018.06.21"]
[EventCountry "BLR"]
[SourceTitle "playchess.com"]
[Source "ChessBase"]
[SourceQuality "1"]
[TimeControl "900+10"]

1. d4 {[%emt 0:00:00]} e6 {[%emt 0:00:03]} 2. Bf4 {[%emt 0:00:02]} c5 {[%emt 0:00:38]} 3. d5 {[%emt 0:00:04]} exd5 {[%emt 0:00:34]} 4. Qxd5 {[%emt 0:00:05]} Nc6 {[%emt 0:00:13]} 5. Nc3 {[%emt 0:00:25]} Nf6 {[%emt 0:00:24]} 6. Qd3 {[%emt 0:00:22]} a6 {[%emt 0:01:42]} 7. O-O-O {[%emt 0:00:48]} Be7 {[%emt 0:00:20]} 8. e4 {[%emt 0:00:38]} O-O {[%emt 0:00:20]} 9. f3 {[%emt 0:00:55]} b5 {[%emt 0:01:32]} 10. g4 {[%emt 0:00:17]} Nb4 {[%emt 0:01:17]} 11. Qd2 {[%emt 0:01:10]} Qa5 {[%emt 0:01:32]} 12. a3 Nc6 {[%emt 0:00:21]} 13. Nd5 {[%emt 0:00:57]} Qxd2+ {[%emt 0:00:38]} 14. Rxd2 {[%emt 0:00:03]} Nxd5 {[%emt 0:00:04]} 15. Rxd5 {[%emt 0:00:16]} b4 {[%emt 0:00:21]} 16. Ne2 {[%emt 0:01:07]} Rd8 {[%emt 0:00:11]} 17. Bd6 {[%emt 0:00:02]} Bxd6 {[%emt 0:00:49]} 18. Rxd6 {[%emt 0:00:01]} Na5 {[%emt 0:00:02]} 19. Ng3 {[%emt 0:00:20]} bxa3 {[%emt 0:00:11]} 20. bxa3 {[%emt 0:00:00]} Nb7 {[%emt 0:00:02]} 21. Rb6 d5 {[%emt 0:00:35]} 22. e5 {[%emt 0:00:34]} c4 {[%emt 0:00:33]} 23. Be2 {[%emt 0:00:39]} Na5 {[%emt 0:01:15]} 24. Rd1 {[%emt 0:00:15]} Bb7 {[%emt 0:00:09]} 25. Nf5 Kf8 {[%emt 0:00:30]} 26. f4 {[%emt 0:00:12]} Bc6 {[%emt 0:00:22]} 27. Nd4 {[%emt 0:00:09]} Be8 {[%emt 0:00:08]} 28. Bf3 {[%emt 0:00:11]} c3 {[%emt 0:00:44]} 29. Be2 {[%emt 0:00:18]} Rdb8 {[%emt 0:00:36]} 30. Rxa6 {[%emt 0:00:28]} Rxa6 {[%emt 0:00:04]} 31. Bxa6 {[%emt 0:00:01]} Ra8 {[%emt 0:00:03]} 32. Bb5 {[%emt 0:01:13]} Nc4 {[%emt 0:00:09]} 33. Bxc4 {[%emt 0:01:41]} dxc4 {[%emt 0:00:07]} 34. Ne2 {[%emt 0:00:15]} Rxa3 {[%emt 0:00:06]} 35. Kb1 {[%emt 0:00:01]} Bc6 {[%emt 0:00:27]} 36. Rd8+ {[%emt 0:00:44]} Ke7 {[%emt 0:00:01]} 37. Rd6 {[%emt 0:00:14]} Be4 {[%emt 0:00:22]} 38. Nd4 {[%emt 0:00:12]} Ra8 {[%emt 0:00:15]} 39. h4 {[%emt 0:02:15]} g6 {[%emt 0:00:12]} 40. f5 {[%emt 0:00:15]} gxf5 {[%emt 0:00:19]} 41. gxf5 {[%emt 0:00:04]} Ra5 {[%emt 0:01:02]} 42. f6+ {[%emt 0:00:03]} Ke8 {[%emt 0:00:01]} 43. e6 {[%emt 0:00:00]} Rd5 {[%emt 0:01:48]} 44. Rxd5 {[%emt 0:00:04]} Bxd5 {[%emt 0:00:02]} 45. e7 {[%emt 0:00:01]} h5 {[%emt 0:00:08]} 46. Ka2 {[%emt 0:00:02]} Bc6 {[%emt 0:00:07]} 47. Nxc6 {[%emt 0:00:07]} 1-0